Cogmind - Beta 16 @@@ ROGUE MODE // 2025.12.27 @ 22:32:42 Player: Moose Result: Destroyed by G-47 Trooper with Particle Gun Performance ------------- Evolutions (2) 1000 Regions Visited (4) 800 Robots Destroyed (51) 255 Value Destroyed (1503) 1503 Prototype IDs (4) 80 Alien Tech Used (0) 0 Bonus (0) 0 TOTAL SCORE: 3638 Bonus ------- None Cogmind --------- Core Integrity 0/550 Matter 290/300 Energy 66/100 System Corruption 0% Temperature Cool (27) Movement Treading (160) Location -8/Storage Parts ------- > --- POWER (1) -------- (None) > --- PROPULSION (5) --- Light Treads > --- UTILITY (3) ------ Improved Heat Sink Medium Storage Unit Target Analyzer > --- WEAPON (2) ------- (None) > --- INVENTORY (10) --- Flight Unit Flight Unit Weight Redist. System Sensor Array Improved Datajack Peak State ------------ > --- POWER ------------ Light Nuclear Core > --- PROPULSION ------- Armored Wheel Armored Wheel Armored Wheel Armored Wheel > --- UTILITY ---------- Improved Heat Sink Medium Storage Unit Salvage Targeting Computer > --- WEAPON ----------- Particle Gun Plasma Cannon > --- INVENTORY -------- Improved Ion Engine Flight Unit Flight Unit Heat Sink Weight Redist. System Sensor Array Improved Datajack [Rating: 24] Favorites ----------- Power Ion Engine Engine Ion Engine Power Core Light Nuclear Core Propulsion Flight Unit Treads Light Treads Leg Aluminum Leg Wheel Armored Wheel Hover Unit Hover Unit Flight Unit Flight Unit Utility Medium Storage Unit Device Sensor Array Storage Medium Storage Unit Processor Signal Interpreter Protection Propulsion Shielding Weapon Assault Rifle Energy Gun Field Laser Energy Cannon Plasma Cannon Ballistic Gun Assault Rifle Launcher Mini Grenade Launcher Special Melee Weapon Improved Datajack Build | -11 -10 -9 -8 -8 ------- Run | Yrd Mat Mat Mat Sto Slots Evolved 4 | . . 2 2 . Power . | . . . . . Propulsion 3 | . . 2 1 . Utility 1 | . . . 1 . Weapon . | . . . . . Parts Attached 47 | 7 3 17 5 15 Power 8 | 2 . 3 1 2 Engine 7 | 2 . 3 1 1 Core 1 | . . . . 1 Reactor . | . . . . . Propulsion 18 | 2 . 11 . 5 Treads 1 | . . . . 1 Leg 2 | 2 . . . . Wheel 4 | . . . . 4 Hover 3 | . . 3 . . Flight 8 | . . 8 . . Utility 10 | 1 3 . 3 3 Device 3 | . 1 . 1 1 Storage 3 | 1 1 . 1 . Processor 3 | . 1 . . 2 Hackware . | . . . . . Protection 1 | . . . 1 . Artifact . | . . . . . Weapon 11 | 2 . 3 1 5 Energy Gun 2 | . . . . 2 Energy Cannon 2 | . . . 1 1 Ballistic Gun 5 | 2 . 2 . 1 Ballistic Cannon . | . . . . . Launcher 1 | . . 1 . . Special Weapon . | . . . . . Impact Weapon . | . . . . . Slashing Weapon . | . . . . . Piercing Weapon . | . . . . . Special Melee Weapon 1 | . . . . 1 Unidentified Prototypes . | . . . . . Parts Lost 29 | . . 12 3 14 Power 6 | . . 3 . 3 Propulsion 13 | . . 7 1 5 Utility 1 | . . . . 1 Weapon 9 | . . 2 2 5 Highest Loss Streak 5 | . . 5 3 4 To Critical Strikes . | . . . . . Average Backups 5 | 1 4 7 6 6 Power . | . 1 . . . Propulsion 1 | . 1 2 1 2 Utility 2 | . . 2 3 2 Weapon . | . 1 1 . . Tool/Special . | . . . . . Unused Backups 15 | . 7 5 . 3 Power 1 | . . 1 . . Propulsion 5 | . 2 1 . 2 Utility 4 | . 2 1 . 1 Weapon 5 | . 3 2 . . Tool/Special . | . . . . . Average Slot Usage (%) 87 | . 99 89 86 71 Engine 10 | . 14 10 9 6 Leg 9 | . 28 1 . . Wheel 5 | . . . . 19 Hover 2 | . . 7 . . Flight 12 | . . 27 34 3 Device 5 | . 12 . . 5 Storage 11 | . 14 11 9 9 Processor 7 | . 1 11 9 9 Protection 1 | . . . 8 2 Energy Gun 1 | . . . . 4 Energy Cannon 2 | . . . 2 6 Ballistic Gun 16 | . 28 19 6 1 Peak Build Rating 24 | 6 8 12 17 24 Average Rating 10 | 4 7 8 14 17 On Entrance 7 | . 6 7 11 14 Avg Prop Armor Cover (%) 5 | . . . . 5 Naked Turns . | . . . . . Heaviest Build 28 | 14 20 19 24 28 Greatest Support 48 | 20 20 20 26 48 Greatest Overweight (x) 6 | 3 . 5 1 6 Average Overweight (x) . | . . . . 1 Largest Inventory Capacity 25 | 8 10 10 25 10 Average Capacity 9 | 7 8 10 10 10 Most Carried 10 | 4 10 10 9 10 Average Carried 5 | 1 4 7 6 6 Final Capacity 10 | 8 10 10 10 10 Final Carried 9 | 2 6 4 9 5 Class Distribution -------------------- 74% | Mutant 24% | Scavenger-Sprinter Dominant Class ---------------- Mutant | -10/Materials Scavenger-Sprinter | -9/Materials Scavenger-Sprinter | -8/Materials Mutant | -8/Storage Resources | -11 -10 -9 -8 -8 ----------- Run | Yrd Mat Mat Mat Sto Matter Collected 1331 | 227 199 575 103 227 Remotely . | . . . . . Salvage Created 1691 | . 215 643 127 706 Parts 101 | . 19 53 6 23 Haulers Intercepted . | . . . . . Recyclers Shooed 3 | . 2 . 1 . Parts Field Recycled . | . . . . . Retrieved Matter . | . . . . . Parts Self-Destructed . | . . . . . Prevented . | . . . . . Parts Restored . | . . . . . Kills | -11 -10 -9 -8 -8 ------- Run | Yrd Mat Mat Mat Sto Combat Hostiles Destroyed 48 | . 7 24 3 14 Guns 32 | . 7 23 . 2 Cannons 12 | . . . 1 11 AOE 2 | . . 1 1 . Classes Destroyed 6 | . 3 2 1 . Worker 2 | . 1 1 . . Tunneler 1 | . . 1 . . Swarmer 18 | . 3 15 . . Grunt 22 | . 4 8 . 10 Sentry 7 | . . 1 2 4 Hunter 1 | . . . 1 . Best Kill Streak 7 | . 3 7 1 6 Combat Bots Only 6 | . 3 6 1 6 Max Kills in Single Turn 2 | . 2 2 1 1 Gunslinging 1 | . 1 . . . Exploded 1 | . . 1 1 . Melee . | . . . . . Uniques/NPCs Destroyed . | . . . . . Combat | -11 -10 -9 -8 -8 -------- Run | Yrd Mat Mat Mat Sto Hostile Shots Fired 326 | . 30 138 22 136 Missed 96 | . 6 51 6 33 Hits 230 | . 24 87 16 103 Projectile 230 | . 24 87 16 103 Critical Strikes 9 | . . . 1 8 Damage Taken 3097 | . 224 894 356 1623 Core 791 | . 48 191 150 402 Absorbed by Shields . | . . . . . Redirected to Shielding 52 | . . . 16 36 Core Remaining (%) 77 | 100 80 52 . . Volleys Fired 173 | . 21 78 18 56 Largest 2 | . 2 2 2 2 Hottest 145 | . 40 53 110 145 Shots Fired 309 | . 42 153 22 92 Gun 238 | . 42 152 6 38 Cannon 66 | . . . 12 54 Launcher 5 | . . 1 4 . Special . | . . . . . Kinetic 214 | . 42 152 6 14 Thermal 90 | . . . 12 78 Explosive 5 | . . 1 4 . Electromagnetic . | . . . . . Robot Hit Streak 12 | . 9 7 4 12 Robot Miss Streak 5 | . 3 5 3 3 Penetration Max . | . . . . . Secondary Targets 7 | . 1 6 . . Max Gunslinging Chain 1 | . 1 1 . . Shots Hit Robots 195 | . 27 88 14 66 Core Hits 80 | . 13 37 4 26 Critical Kills 1 | . . . 1 . Critical Parts Destroyed . | . . . . . Critical Strikes 3 | . . . 1 2 Burn 2 | . . . . 2 Meltdown 1 | . . . 1 . Melee Attacks 7 | . . . . 7 Impact . | . . . . . Slashing . | . . . . . Piercing . | . . . . . Sneak Attacks . | . . . . . Combat Hostiles . | . . . . . Follow-up Attacks . | . . . . . Damage Inflicted 3146 | . 348 1128 286 1384 Guns 1771 | . 334 1062 34 341 Cannons 1203 | . . . 176 1027 Explosions 124 | . . 58 66 . Melee . | . . . . . Ramming 48 | . 14 8 10 16 Kinetic 1521 | . 334 1062 34 91 Thermal 1453 | . . . 176 1277 Explosive 124 | . . 58 66 . Electromagnetic . | . . . . . Impact . | . . . . . Slashing . | . . . . . Piercing . | . . . . . Highest Corruption 1 | . 1 . . . Average Corruption 1 | . 1 . . . Corruption Purged . | . . . . . Corruption Blocked . | . . . . . Effects 2 | . 2 . . . Message Errors 1 | . 1 . . . Matter Fused 1 | . 1 . . . Overload Shots . | . . . . . Overflow Damage 12 | . . 12 . . Projectiles . | . . . . . Explosions 12 | . . 12 . . Melee . | . . . . . Knockbacks . | . . . . . Impact . | . . . . . Kinetic . | . . . . . Secondary . | . . . . . Self-Inflicted Damage 167 | . . 41 119 7 Shots 3 | . . 1 2 . Rammed 5 | . . 1 1 3 Targets Rammed 8 | . 3 1 1 3 Kicked 3 | . 3 . . . Crushed . | . . . . . Highest Temperature 587 | . . 27 281 587 Average Temperature 116 | . . 6 108 176 Received Heat Transfer 1299 | . 60 231 27 981 Effects 14 | . . . . 14 Shutdowns 4 | . . . . 4 Energy Bleed 2 | . . . . 2 Interference 2 | . . . . 2 Short Circuit 2 | . . . . 2 Damage (minor) 1 | . . . . 1 Damage (major) 3 | . . . . 3 Siege Activations . | . . . . . Martial Activations . | . . . . . Shielding Activations . | . . . . . Robots Disrupted . | . . . . . Combat Hostiles . | . . . . . Robots Corrupted . | . . . . . Combat Hostiles . | . . . . . Parts Fried . | . . . . . Impact Corruptions . | . . . . . Robots Melted 2 | . . . 1 1 Combat Hostiles 2 | . . . 1 1 Parts Melted 6 | . . . 2 4 Heat Transferred 3049 | . . . 350 2699 Parts Sabotaged . | . . . . . Parts Stolen . | . . . . . Parts Stripped . | . . . . . Power Chain Reactions . | . . . . . Alert | -11 -10 -9 -8 -8 ------- Run | Yrd Mat Mat Mat Sto Maximum Alert Level 1 | . . 1 1 . Low Security (%) 77 | 100 100 45 22 100 Level 1 22 | . . 54 77 . Level 2 . | . . . . . Level 3 . | . . . . . Level 4 . | . . . . . Level 5 . | . . . . . High Security . | . . . . . Max Security . | . . . . . Peak Influence 380 | . 79 380 284 183 Initial 154 | . . 16 154 100 Average 112 | . 23 183 228 123 Influence Increases 1526 | . 190 740 205 391 Destroy 0b10 Robot/C 960 | . 140 480 60 280 Destroy 0b10 Robot/NC 15 | . 5 10 . . Destroy Leader 210 | . 30 90 30 60 Successful Hack 20 | . . 12 . 8 Disable Machine 75 | . 15 . 45 15 Destroy Structure 81 | . . 13 55 13 Partial Spotted 45 | . . 30 15 . Lose Combat Pursuer 120 | . . 105 . 15 Influence Decreases 1429 | . 151 413 332 533 Entered New Map 374 | . . 23 212 139 Time Decay 765 | . 151 270 90 254 Lost Part 290 | . . 120 30 140 Squads Dispatched 8 | . 2 4 . 2 Investigation 2 | . . 1 . 1 Extermination . | . . . . . Reinforcement 6 | . 2 3 . 1 Assault . | . . . . . Garrison . | . . . . . Intercept . | . . . . . Searches Triggered . | . . . . . Construction Impeded . | . . . . . Haulers Reinforced . | . . . . . Active Scanning Responses . | . . . . . Cargo Convoy Interrupts . | . . . . . Stealth | -11 -10 -9 -8 -8 --------- Run | Yrd Mat Mat Mat Sto Distress Signals 6 | . 1 3 . 2 Communications Jammed . | . . . . . Distress Signals . | . . . . . Times Spotted 78 | . 14 40 4 20 Peak Tracking Total 13 | . 4 13 2 5 Tactical Retreats 6 | . . 5 . 1 Traps | -11 -10 -9 -8 -8 ------- Run | Yrd Mat Mat Mat Sto Traps Triggered 1 | . 1 . . . Indirectly . | . . . . . Trap Hack Attempts . | . . . . . Triggered . | . . . . . Disarmed . | . . . . . Reprogrammed . | . . . . . Reused . | . . . . . Traps Extracted . | . . . . . Installed . | . . . . . Triggered . | . . . . . Machines | -11 -10 -9 -8 -8 ---------- Run | Yrd Mat Mat Mat Sto Machines Disabled 5 | . 1 . 3 1 Max in Single Turn 2 | . 1 . 2 1 Machines Repaired . | . . . . . Machines Dismantled . | . . . . . Machines Sabotaged . | . . . . . Overloaded Fab Kills . | . . . . . Hacking | -11 -10 -9 -8 -8 --------- Run | Yrd Mat Mat Mat Sto Machines Accessed 11 | . 2 4 2 3 Terminals 7 | . 2 2 1 2 Fabricators . | . . . . . Repair Stations . | . . . . . Recycling Units 2 | . . 1 . 1 Scanalyzers 2 | . . 1 1 . Garrison Access . | . . . . . Total Hacks 30 | . 4 15 4 7 Successful 13 | . . 6 3 4 Failed 15 | . 4 8 . 3 Catastrophic 2 | . . . . 2 Database Lockouts 2 | . . 1 1 . Manual 8 | . 2 4 . 2 Terminals 19 | . 4 9 1 5 Fabricators . | . . . . . Repair Stations . | . . . . . Recycling Units 3 | . . 1 . 2 Scanalyzers 8 | . . 5 3 . Garrison Access . | . . . . . Terminal Hacks 7 | . . 3 1 3 Prototype ID Bank 2 | . . 1 . 1 Branch Access Points 1 | . . . . 1 Terminal Index 1 | . . 1 . . Alert Level 1 | . . . 1 . Transport Status 1 | . . 1 . . Recall Reinforcements 1 | . . . . 1 Fabricator Hacks . | . . . . . Repair Station Hacks . | . . . . . Recycling Unit Hacks 2 | . . 1 . 1 Report Inventory 1 | . . 1 . . Retrieve Components 1 | . . . . 1 Scanalyzer 4 | . . 2 2 . Retrieve Study 4 | . . 2 2 . Garrison Access Hacks . | . . . . . Unauthorized Hacks . | . . . . . Terminals . | . . . . . Fabricators . | . . . . . Repair Stations . | . . . . . Recycling Units . | . . . . . Scanalyzers . | . . . . . Garrison Access . | . . . . . Data Cores Recovered . | . . . . . Used . | . . . . . Hacking Detections 6 | . 2 2 . 2 Full Trace Events 3 | . . 1 . 2 Feedback Events . | . . . . . Feedback Blocked . | . . . . . Robot Schematics Acquired . | . . . . . Robots Built . | . . . . . Authchips . | . . . . . Time . | . . . . . Total Robot Build Rating . | . . . . . Part Schematics Acquired . | . . . . . Parts Built . | . . . . . Authchips . | . . . . . Time . | . . . . . Total Part Build Rating . | . . . . . Part Studies Acquired 4 | . . 2 2 . Parts Repaired . | . . . . . Time . | . . . . . Parts Recycled . | . . . . . Recycled Matter . | . . . . . Retrieved Matter . | . . . . . Retrieved Components . | . . . . . Parts Scanalyzed . | . . . . . Part Schematics Acquired . | . . . . . Parts Damaged . | . . . . . Bothacking | -11 -10 -9 -8 -8 ------------ Run | Yrd Mat Mat Mat Sto Used RIF Installer . | . . . . . Robots Hacked 1 | . . . . 1 Non-combat . | . . . . . Combat 1 | . . . . 1 Robot Hacks Applied 2 | . . . . 2 parse_system 2 | . . . . 2 Relay Couplers Released . | . . . . . Fabnet Peak Effective % . | . . . . . Robots Rewired . | . . . . . Allies Hacked . | . . . . . Hacks Repelled . | . . . . . Allies | -11 -10 -9 -8 -8 -------- Run | Yrd Mat Mat Mat Sto Total Allies . | . . . . . Largest Group . | . . . . . Highest-Rated Group . | . . . . . Highest-Rated Ally . | . . . . . Total Orders . | . . . . . Ally Attacks . | . . . . . Total Damage . | . . . . . Kills . | . . . . . Allies Corrupted . | . . . . . Allies Melted . | . . . . . Intel | -11 -10 -9 -8 -8 ------- Run | Yrd Mat Mat Mat Sto Active Infowar (turns) 607 | . 607 . . . Sensors 607 | . 607 . . . Robot Analysis Total . | . . . . . Derelict Logs Recovered . | . . . . . Drone Launches . | . . . . . Drone Recoveries . | . . . . . Exploration | -11 -10 -9 -8 -8 ------------- Run | Yrd Mat Mat Mat Sto Turns Passed 2085 | 90 674 589 185 547 Spaces Moved 1896 | 65 482 769 323 257 Core 69 | 29 . 2 . 38 Treads 15 | . . . . 15 Legs 532 | 36 482 14 . . Wheels 174 | . . . . 174 Hover 142 | . . 142 . . Flight 964 | . . 611 323 30 Fastest Speed 31 | 50 120 31 31 90 Average Speed 75 | 116 120 40 37 137 Slowest Speed 350 | 200 120 300 114 350 Overloaded Moves . | . . . . . Propulsion Burnouts . | . . . . . Robots Hopped 3 | . . 3 . . Potential Cave-ins . | . . . . . Cave-ins Triggered . | . . . . . Exploration Rate (%) 30 | 5 55 44 18 31 Regions Visited 4 Branch Regions 1 Pre-discovered Areas . | . . . . . Known Exits Taken 3 | . 1 1 1 . Unknown Exits Taken 1 | 1 . . . . Scrap Searched . | . . . . . Spaces Dug . | . . . . . Terrain Destroyed 91 | . . 12 68 11 Melee . | . . . . . Projectile 16 | . . . 5 11 AOE 75 | . . 12 63 . Terrain Rammed . | . . . . . Walls Destroyed . | . . . . . Machines Disabled . | . . . . . Actions | -11 -10 -9 -8 -8 --------- Run | Yrd Mat Mat Mat Sto Total 2244 | 79 538 909 361 357 Wait 9 | . 6 3 . . Move 1886 | 64 481 762 322 257 Hop 3 | . . 3 . . Pick Up 62 | 8 14 20 8 12 Fast Attach . | . . . . . Attach 37 | 6 1 18 2 10 Detach 4 | . . 4 . . Swap 31 | 1 3 12 9 6 Drop 22 | . 9 8 1 4 Fire 173 | . 21 78 18 56 Melee 7 | . . . . 7 Ram 5 | . . 1 1 3 Kick 3 | . 3 . . . Crush . | . . . . . Escape Stasis . | . . . . . Rewire 2 | . . . . 2 Trap . | . . . . . Miscellaneous . | . . . . . Route ------- -11/Scrapyard -10/Materials (discovered 4 exits: *Mat x2 / [*Min x2]) -9/Materials -8/Materials -8/Storage (discovered 1 exit: Rec) History --------- Turn | Location | Event 8 | -11/Scrapyard | Discovered new exit (range 15) 91 | -11/Scrapyard | Entered Materials 185 | -10/Materials | Discovered new exit (range 16) 262 | -10/Materials | Discovered new exit (range 12) 302 | -10/Materials | Discovered new exit (range 7) 313 | -10/Materials | Build established: Mutant 416 | -10/Materials | Discovered new exit (range 16) 764 | -10/Materials | Identified exit to Materials 765 | -10/Materials | Entered another Materials area 765 | -9/Materials | Evolved 2 slots: Propulsion x2 1225 | -9/Materials | Lost 4 parts (2p1n1w) 1263 | -9/Materials | Central database locked down 1284 | -9/Materials | Build established: Scavenger-Sprinter 1350 | -9/Materials | Discovered new exit (range 14) 1354 | -9/Materials | Identified exit to Materials 1354 | -9/Materials | Entered another Materials area 1354 | -8/Materials | Evolved 2 slots: Propulsion x1, Utility x1 1376 | -8/Materials | Lost 5 parts (1p3n1w) 1383 | -8/Materials | Central database locked down 1440 | -8/Materials | Discovered new exit (range 5) 1450 | -8/Materials | Identified exit to Storage 1532 | -8/Materials | Lost 3 parts (1n2w) 1539 | -8/Materials | Entered Storage 1545 | -8/Storage | Identified exit to Recycling 1742 | -8/Storage | Lost 4 parts (1p1n1u1w) 1789 | -8/Storage | Build established: Mutant 1871 | -8/Storage | Lost 3 parts (1p2n) 1936 | -8/Storage | Lost 3 parts (1n2w) 2028 | -8/Storage | Core integrity fell below 50% 2071 | -8/Storage | Core integrity fell below 20% 2086 | -8/Storage | Destroyed by G-47 Trooper with Particle Gun Last Messages --------------- Field Laser destroyed. R-06 Scavenger collects Lgt. Ion Engine. K-01 Serf collects debris. Heat Sink melted. Y-45 Defender destroyed. K-01 Serf collects debris. R-06 Scavenger collects Wheel. K-01 Serf collects debris. Acquired Lgt. Treads. K-01 Serf collects debris. [Achievement: Universal Adapter] Critical hit (Burn: +37). K-01 Serf collects debris. Ion Cannon destroyed. K-01 Serf collects debris. Critical hit (Burn: +37). K-01 Serf collects debris. Critical hit (Burn: +37). K-01 Serf collects debris. Critical hit (Burn: +37). Map ----- +----------------------------------------------------+ | ?????????????????????????????????????????????????? | | ?????????????????????????????????????????????????? | | ?????????????????????????????????????????????????? | | ?????????????????????????????????????????????????? | | ???????????????????##+##?????????????????????????? | | ??????????????????? ?????????????????????????? | | ??????????????????? #???????##????????????????? | | ??????????????????? #?????? #????????????????? | | ?????############### #???? #????????????????? | | ?????# # !## #???" #????????????????? | | ?????# #! ## #??"" #????????????????? | | ?????# # ## #? ??????????????????? | | ###### # % ## #?== ""??????????????????? | | # ####+##### # == ????????????????????? | | " # + %#???# # = ??????????????????????? | | " # # #???# + ????????????????????????? | | " # # ##### #?????????????????????????? | | " # + #?????????????????????????? | | " ######### ######+#####??????????????????????? | | #?????###+###k!% #??????????????????????? | | #?????# #k%% #??????????????????????? | | #?????# "" # """"#??????????????????????? | | #?????# """ # """"#??????????????????????? | | #######%"""%# """#??????????????????????? | | #+#### #= "" # """"#??????????????????????? | | #% "" # g @#??????????????????????? | | " + # g #??????????????????????? | | #%% # #??????????????????????? | | #+#### %# #### #####??????????????????????? | | ####### #??###??????????????????????????? | | "" #?????# ##??????????????????????????????? | | "" #?????# ##??????????????????????????????? | | "" #?????# #####???????????????????????????????? | | #?????##????????????????????????????????????? | | ######???????????????????????????????????????????? | | | | | | | | | | | | | | | | | | | | | | | | | | | | | | | +----------------------------------------------------+ Best States ------------- Heat Dissipation 45 Energy Generation 15 Energy Capacity 265 Matter Stores 300 Matter Capacity 300 Sight Range 16 Robot Scan Range 14 Terrain Scan Density 10 Additional Mass Support 6 Propulsion Shielding 33 Evasion (%) 63 Target Analysis 5 Recoil Reduction 1 Salvage Targeting 1 Item Schematics ----------------- None Robot Schematics ------------------ None Fabricated ------------ Nothing Repaired ---------- Nothing Studied --------- Flight Unit | -9/Materials | Hacked Autogun | -9/Materials | Hacked Lgt. Deuterium Engine | -8/Materials | Hacked Imp. Ion Engine | -8/Materials | Hacked Alien Tech Used ----------------- None Achievements -------------- Universal Adapter Challenges ------------ None Game ------ Seed GrapheneFactoryCalibrator Manual? 0 Play Time 00:37:01 Cumulative 11.9 hours Start 2025.12.27 @ 21:56:31 End 2025.12.27 @ 22:32:42 Sessions 1 Manual Loads 0 Difficulty Rogue Special Mode None Game No. 32 Rogue 32 Adventurer 0 Explorer 0 Win Type - Total 0 Types 0/0/0/0/0/0/0/0/0/0 Lore% 4 Gallery% 14 Achievement% 12 Wizard Run 0 Options --------- Layout 1 ASCII 0 Keyboard 0 Movement Arrows Keybinds 0 Fullscreen 1 Font 16/SmallcapsGlow Map View 55x38 Zoom Use 0% Tactical HUD 0 Map Filters NONE Filters NONE Steam 1 RUN: ce0d7245-7df7-48ac-bd41-30ec7126556d